bitfinex-derivatives/quotes_ETHF0:USTF0_20250107
["timestamp","ask_amount","ask_price","bid_price","bid_amount"]
[1736211780494,6.66452831,3670.3,3670.2,0.27234]
[1736211780799,2.71672593,3670.4,3670.2,0.27233]
[1736211781190,2.71672593,3670.4,3669.9,0.5272]
[1736211781790,2.16352593,3670.1,3670.0,0.27235]
[1736211781995,2.16352593,3670.1,3669.9,0.5272]
[1736211782196,2.43587593,3670.1,3669.9,0.5272]
[1736211782397,0.27235,3670.0,3669.9,0.5272]
[1736211782593,2.16352593,3670.1,3669.6,0.5646]
[1736211782794,2.16352593,3669.8,3669.5,41.07238]
[1736211783198,2.16352593,3669.8,3669.6,0.27238]
[1736211784396,2.16352593,3669.8,3669.5,40.8]
[1736211784602,2.16352593,3669.8,3669.7,0.27237]
[1736211785295,2.16352593,3669.8,3669.4,0.5405]
[1736211785602,3.00339593,3669.8,3669.5,0.27238]
[1736211785804,2.73102593,3669.8,3669.6,41.07238]
[1736211786396,2.73102593,3669.8,3669.7,0.27237]
[1736211787103,3.2078,3670.2,3669.6,40.8]
[1736211787303,3.2078,3670.2,3670.1,0.27234]
[1736211787603,2.11645678,3670.5,3670.4,0.27232]
[1736211788399,6.39736437,3670.6,3670.4,40.8]
[1736211788400,3.2078,3670.6,3670.4,40.8]
[1736211788602,3.2078,3670.6,3670.5,0.27231]
[1736211789497,4.2898,3670.6,3670.4,40.8]
[1736211789804,4.2898,3670.6,3669.4,0.2724]
[1736211789805,0.27238,3669.7,3669.4,0.2724]
[1736211790103,3.48018,3669.7,3669.5,8.55628401]
[1736211790501,0.27238,3669.6,3669.5,8.55628401]
[1736211790702,2.16352593,3669.6,3669.5,8.55628401]
[1736211790907,2.43590593,3669.6,3669.5,8.55628401]
[1736211791103,3.01150593,3669.6,3669.5,8.55628401]
[1736211791512,10.24137347,3669.6,3669.5,8.55628401]
[1736211791812,10.50149347,3669.6,3668.9,0.85243]
[1736211792004,2.16352593,3669.2,3669.0,40.8]
[1736211792519,0.27242,3669.1,3669.0,40.8]
[1736211792712,2.43594593,3669.2,3669.0,40.8]
[1736211792925,0.27242,3669.1,3669.0,40.8]
[1736211794313,2.16352593,3669.2,3669.0,40.8]
[1736211794523,2.43594593,3669.2,3669.0,40.8]
[1736211795508,2.16352593,3669.2,3669.0,41.07242]
[1736211795710,3.2078,3669.3,3669.2,0.27241]
[1736211796311,3.2078,3669.3,3669.1,0.544]
[1736211796513,0.27242,3669.2,3669.0,40.8]
[1736211796717,0.27242,3669.1,3669.0,40.8]
[1736211796923,2.43593593,3669.2,3669.0,40.8]
[1736211797314,2.16352593,3669.2,3669.0,40.8]
[1736211797819,2.16352593,3669.2,3669.0,41.07243]
[1736211798421,2.43593593,3669.2,3669.0,40.8]
[1736211798720,2.16352593,3669.2,3669.0,40.8]
[1736211799126,2.16352593,3669.2,3669.1,0.27242]
[1736211800415,2.16352593,3669.2,3668.1,4.26583978]
[1736211800625,2.16352593,3668.8,3668.6,0.27245]
[1736211801019,3.2078,3668.9,3668.7,41.07245]
[1736211801319,3.2078,3668.9,3668.7,40.8]
[1736211801513,3.2078,3668.9,3668.8,0.27244]
[1736211805114,3.2078,3668.9,3668.7,40.8]
[1736211805522,2.43596593,3668.8,3668.7,40.8]
[1736211807827,2.98396593,3668.8,3668.7,40.8]
[1736211808226,0.2725,3668.0,3667.9,4.26583978]
[1736211808521,0.2725,3668.0,3667.3,18.69890949]
[1736211808522,0.27253,3667.6,3667.3,18.69890949]
[1736211808721,5.64385593,3667.6,3667.3,18.69890949]
[1736211808921,12.55265697,3667.6,3667.3,18.69890949]
[1736211809123,12.55265697,3667.6,3667.3,59.49890949]
[1736211809321,12.55265697,3667.6,3667.3,18.69890949]
[1736211810122,12.55265697,3667.6,3667.0,40.8]
[1736211810123,0.27256,3667.2,3667.0,40.8]
[1736211810334,5.94522593,3667.1,3666.1,3.2078]
[1736211810527,5.94522593,3667.1,3666.2,0.5333]
[1736211810829,5.37132593,3667.1,3667.0,0.27257]
[1736211812325,5.37132593,3667.1,3667.0,41.07257]
[1736211813527,5.37132593,3667.1,3667.0,40.8]
[1736211813722,5.37132593,3667.1,3667.0,41.07257]
[1736211814518,5.37132593,3667.1,3667.0,40.8]
[1736211815320,5.64389593,3667.1,3667.0,40.8]
[1736211815729,5.37132593,3667.1,3666.1,3.2078]
[1736211815929,2.16352593,3666.4,3666.3,0.27262]
[1736211816227,2.16352593,3666.7,3666.3,40.8]
[1736211816429,2.16352593,3666.7,3666.4,0.27262]
[1736211817031,2.16352593,3666.7,3666.5,0.27261]
[1736211817324,2.16352593,3666.7,3666.6,0.2726]
[1736211818128,0.5787,3666.9,3666.8,0.27259]
[1736211818423,0.5787,3666.9,3666.3,40.8]
[1736211818826,2.16352593,3666.7,3666.3,40.8]
[1736211819026,2.16352593,3666.7,3666.4,0.27261]
[1736211819221,0.5787,3666.9,3666.3,40.8]
[1736211819427,0.5787,3666.9,3666.8,0.27259]
[1736211819627,0.5787,3666.9,3666.4,0.5463]
[1736211819822,0.5787,3666.9,3666.8,0.27259]
[1736211820224,0.5787,3666.9,3666.4,0.5463]
[1736211820426,0.27259,3666.8,3666.4,0.27261]
[1736211820627,0.5787,3666.9,3666.6,0.2726]
[1736211820828,0.85128,3666.9,3666.6,0.2726]
[1736211821426,0.5787,3666.9,3666.3,40.8]
[1736211821626,0.5787,3666.9,3666.6,0.2726]
[1736211821828,0.5787,3666.9,3666.3,40.8]
[1736211822026,0.5787,3666.9,3666.8,0.27259]
[1736211822335,0.5787,3666.9,3666.6,0.2726]
[1736211822529,0.5787,3666.9,3666.3,40.8]
[1736211822530,2.16352593,3666.7,3666.3,40.8]
[1736211822729,2.43612593,3666.7,3666.4,0.27262]
[1736211822926,2.16352593,3666.7,3666.5,0.27261]
[1736211823627,0.85129,3666.9,3666.3,40.8]
[1736211824031,0.5787,3666.9,3666.8,0.27259]
[1736211824440,3.2078,3667.1,3666.3,40.8]
[1736211824740,3.2078,3667.1,3667.0,0.27257]
[1736211825242,3.2078,3667.1,3666.8,0.27258]
[1736211825534,3.2078,3667.1,3666.9,0.27258]
[1736211825730,2.16352593,3667.0,3666.3,40.8]
[1736211825934,2.16352593,3667.0,3666.4,0.27262]
[1736211825935,2.43612593,3666.7,3666.4,0.27262]
[1736211826136,2.16352593,3666.7,3666.6,0.2726]
[1736211826626,0.27259,3666.9,3666.6,0.2726]
[1736211826831,0.27259,3666.8,3666.6,0.2726]
[1736211827034,0.27259,3666.9,3666.6,0.2726]
[1736211827333,2.16352593,3667.0,3666.3,40.8]
[1736211827334,3.2078,3666.7,3666.3,40.8]
[1736211827631,0.27261,3666.6,3666.3,40.8]
[1736211827934,5.37132593,3666.7,3666.3,40.8]
[1736211828134,2.43614593,3666.4,3666.3,40.8]
[1736211831538,2.16352593,3666.4,3665.8,0.27266]
[1736211831844,2.43618593,3665.9,3665.7,3.2078]
[1736211832042,2.43618593,3665.9,3665.8,40.8]
[1736211832434,5.64398593,3665.9,3665.8,40.8]
[1736211833044,5.37132593,3665.9,3665.2,3.2078]
[1736211833243,0.2727,3665.3,3665.0,0.84202]
[1736211833447,2.16352593,3665.1,3665.0,0.27272]
[1736211833650,2.16352593,3665.1,3665.0,40.8]
[1736211834144,2.43624593,3665.1,3665.0,40.8]
[1736211834345,5.64404593,3665.1,3665.0,40.8]
[1736211834544,5.37132593,3665.1,3664.2,3.2078]
[1736211834741,1.1096,3665.4,3664.6,0.27275]
[1736211834742,5.37132593,3664.7,3664.6,0.27275]
[1736211835249,3.2078,3664.7,3664.6,40.8]
[1736211835746,5.37132593,3664.7,3664.6,40.8]
[1736211835941,5.64407593,3664.7,3664.6,40.8]
[1736211836140,5.64407593,3664.7,3664.1,0.27279]
[1736211836141,5.37132593,3664.7,3664.1,0.27279]
[1736211836337,2.16352593,3664.4,3664.1,0.27279]
[1736211836541,2.16352593,3664.4,3664.0,0.5851]
[1736211836743,2.16352593,3664.4,3664.1,41.07279]
[1736211837146,2.43629593,3664.4,3664.1,40.8]
[1736211837539,2.16352593,3664.4,3664.1,40.8]
[1736211837949,2.16352593,3664.4,3664.2,0.27278]
[1736211838448,2.16352593,3664.4,3664.1,40.8]
[1736211838646,2.43629593,3664.4,3664.1,40.8]
[1736211839148,0.27278,3664.3,3664.1,40.8]
[1736211839345,2.16352593,3664.4,3664.1,40.8]
[1736211839948,2.16352593,3664.4,3664.1,41.07279]
[1736211840238,5.37132593,3664.7,3664.1,40.8]
[1736211840443,5.37132593,3664.7,3664.5,0.27275]
[1736211840641,5.64407593,3664.7,3664.2,0.27278]
[1736211840841,5.37132593,3664.7,3664.3,0.27277]
[1736211841144,5.37132593,3664.7,3664.4,0.27276]
[1736211841345,3.2078,3664.7,3664.6,0.27275]
[1736211841946,3.2078,3665.3,3665.2,0.27271]
[1736211842338,2.11516394,3665.9,3665.2,44.0078]
[1736211842551,2.11516394,3665.9,3665.8,0.27266]
[1736211842739,3.2078,3666.0,3665.7,0.27267]
[1736211843044,3.2078,3666.4,3665.5,2.16352593]
[1736211843247,2.11516394,3666.5,3666.4,0.27262]
[1736211843551,2.11516394,3666.5,3666.4,3.48042]
[1736211843748,0.27258,3667.0,3666.5,0.27261]
[1736211844048,2.16352593,3666.9,3666.6,40.8]
[1736211844253,2.16352593,3666.9,3666.6,41.0726]
[1736211844444,2.16352593,3666.9,3666.6,40.8]
[1736211844743,2.16352593,3667.2,3666.6,40.8]
[1736211844946,2.16352593,3667.2,3666.7,0.2726]
[1736211845148,0.27257,3667.1,3666.6,41.0726]
[1736211846247,2.16352593,3667.2,3666.6,40.8]
[1736211846443,2.43609593,3667.2,3666.7,0.2726]
[1736211846647,0.27255,3667.4,3666.6,40.8]
[1736211846849,3.48036,3667.3,3666.8,0.27258]
[1736211847049,3.48036,3667.3,3666.9,0.27258]
[1736211847239,3.2078,3667.3,3666.9,0.27258]
[1736211847444,3.2078,3667.3,3667.0,0.27257]
[1736211847649,3.2078,3667.3,3667.2,0.27256]
[1736211848053,5.37132593,3668.1,3667.6,0.27252]
[1736211848249,5.37132593,3668.1,3667.7,0.27252]
[1736211848452,2.16352593,3668.1,3667.9,0.27251]
[1736211848649,2.16352593,3668.1,3667.2,3.2078]
[1736211848845,2.16352593,3668.1,3667.7,0.27252]
[1736211849447,2.16352593,3668.1,3667.8,41.07251]
[1736211850552,2.16352593,3668.1,3667.8,40.8]
[1736211850745,2.16352593,3668.1,3667.8,41.07251]
[1736211850950,2.16352593,3668.4,3668.0,0.2725]
[1736211851157,2.43600593,3668.4,3667.9,0.27251]
[1736211851352,2.43599593,3668.4,3667.8,40.8]
[1736211851659,2.16352593,3668.4,3667.8,40.8]
[1736211851957,0.27248,3668.3,3667.8,40.8]
[1736211852456,0.27248,3668.3,3667.7,0.27252]
[1736211852748,2.16352593,3668.1,3667.7,0.27252]
[1736211852953,2.16352593,3668.1,3667.7,41.07252]
[1736211853251,2.16352593,3668.1,3667.2,3.48035]
[1736211853252,0.27253,3667.7,3667.2,3.48035]
[1736211853447,3.2078,3667.7,3667.2,3.2078]
[1736211853647,3.2078,3667.7,3667.3,0.27255]
[1736211854160,3.2078,3667.7,3667.4,0.27254]
[1736211854360,0.5947,3668.0,3667.6,0.27253]
[1736211854559,0.86721,3668.0,3667.5,0.27254]
[1736211855157,0.86721,3668.0,3667.2,3.2078]
[1736211855356,0.27253,3667.7,3667.2,3.48036]
[1736211855545,3.2078,3667.8,3667.2,3.2078]
[1736211855855,3.2078,3667.8,3667.3,0.27255]
[1736211856160,3.48032,3667.8,3667.3,0.27255]
[1736211856452,0.27253,3667.7,3667.3,0.27255]
[1736211856648,3.2078,3667.8,3667.2,3.2078]
[1736211856851,0.27253,3667.6,3667.2,3.2378]
[1736211857050,0.27252,3667.7,3667.2,3.51035]
[1736211857247,0.27253,3667.6,3667.2,3.51035]
[1736211857448,0.27253,3667.6,3667.2,3.2378]
[1736211857651,3.2078,3667.4,3667.1,0.27257]
[1736211858458,5.64387593,3667.4,3666.6,3.2078]
[1736211858661,5.64387593,3667.4,3666.7,0.27259]
[1736211858662,0.27256,3667.2,3666.7,0.27259]
[1736211858860,0.27255,3667.3,3666.9,0.27258]
[1736211859457,5.37132593,3667.4,3666.9,0.27258]
[1736211859659,0.27255,3667.3,3666.9,0.27258]
[1736211860949,0.27255,3667.3,3666.6,3.2078]
[1736211860950,5.64387593,3667.4,3666.6,3.2078]
[1736211861153,0.27255,3667.3,3666.9,0.27257]
[1736211861455,5.37132593,3667.4,3667.1,0.27256]
[1736211861650,3.2078,3667.4,3666.6,3.2078]
[1736211861856,3.2078,3667.4,3666.6,5.40132593]
[1736211862158,3.2078,3667.4,3667.3,0.27255]
[1736211863559,0.5947,3668.0,3667.9,0.27251]
[1736211863766,2.69166394,3668.2,3668.0,0.2725]
[1736211864055,2.69166394,3668.2,3668.1,0.27249]
[1736211864261,2.69166394,3668.2,3668.1,41.07249]
[1736211864857,0.5765,3668.2,3668.1,41.07249]
[1736211866654,3.7623,3668.4,3668.1,41.07249]
[1736211866856,3.7623,3668.4,3668.2,0.27248]
[1736211867656,3.7623,3668.4,3668.3,0.27248]
[1736211868359,4.03478,3668.4,3668.1,41.07249]
[1736211868659,3.7623,3668.4,3668.2,0.27248]
[1736211868862,3.7623,3668.4,3668.3,0.27248]
[1736211869067,3.2078,3668.4,3668.3,0.27248]
[1736211870168,3.2078,3668.8,3668.3,0.27248]
[1736211870354,3.2078,3668.8,3668.7,0.27245]
[1736211871956,3.2078,3668.8,3668.7,41.07245]
[1736211872368,3.2078,3668.8,3668.7,40.8]
[1736211872567,3.48024,3668.8,3668.4,0.27247]
[1736211872757,3.2078,3668.8,3668.2,0.5578]
[1736211872957,3.2078,3668.8,3668.6,0.27245]
[1736211873158,3.2078,3668.8,3668.3,40.8]
[1736211873367,3.2078,3668.8,3668.5,0.27246]
[1736211873558,3.2078,3668.8,3668.6,0.27245]
[1736211873758,0.27245,3668.7,3668.4,0.27247]
[1736211873961,3.48024,3668.8,3668.4,0.27247]
[1736211874163,3.48024,3668.8,3668.4,0.27246]
[1736211874365,3.48024,3668.8,3668.4,0.27247]
[1736211874569,0.27245,3668.7,3668.4,0.27247]
[1736211875963,3.2078,3668.8,3668.3,40.8]
[1736211876159,3.48027,3668.4,3668.3,40.8]
[1736211877465,3.2078,3668.4,3668.3,40.8]
[1736211877661,3.48027,3668.4,3668.3,40.8]
[1736211880566,5.64379593,3668.4,3668.3,40.8]
[1736211880771,6.74179593,3668.4,3668.3,40.8]
[1736211881368,5.64379593,3668.4,3668.3,40.8]
[1736211881567,6.74179593,3668.4,3668.3,40.8]
[1736211884475,6.46932593,3668.4,3667.6,0.27253]
[1736211884771,0.27252,3667.8,3667.6,0.27253]
[1736211884975,0.27252,3667.8,3667.7,40.8]
[1736211885571,3.48031,3667.9,3667.7,41.07252]
[1736211885873,3.2078,3667.9,3667.7,40.8]
[1736211886176,3.2078,3667.9,3667.8,0.27252]
[1736211887970,3.2078,3668.4,3668.3,0.27248]
[1736211888776,3.2078,3668.4,3668.3,41.07248]
[1736211890280,3.48027,3668.4,3668.3,40.8]
[1736211890475,4.03517,3668.4,3668.3,40.8]
[1736211892473,6.15033394,3668.4,3668.3,40.8]
[1736211894378,6.15033394,3668.4,3668.3,41.07248]
[1736211894379,5.32296394,3668.4,3668.3,41.07248]
[1736211895283,3.2078,3668.4,3668.3,41.07248]
[1736211896879,3.2078,3668.4,3668.3,40.8]
[1736211897085,3.48027,3668.4,3668.3,40.8]
[1736211898078,5.64379593,3668.4,3668.3,40.8]
[1736211899772,6.05268255,3668.4,3668.3,40.8]
[1736211902381,0.27253,3667.6,3667.5,0.5414]
[1736211902585,5.37132593,3667.6,3667.0,6.65245483]
[1736211902786,0.27256,3667.3,3667.0,6.65245483]
[1736211902982,0.27256,3667.3,3667.2,40.8]
[1736211903379,2.43608593,3667.3,3667.2,40.8]
[1736211903582,8.85732788,3667.3,3666.7,6.37988483]
[1736211903789,3.48039,3666.8,3666.7,6.37988483]
[1736211903986,3.48039,3666.8,3666.7,47.17988483]
[1736211904286,4.03919,3666.8,3666.7,47.17988483]
[1736211904879,4.44826357,3666.8,3666.7,40.8]
[1736211905480,4.17567357,3666.8,3666.0,1.1744]
[1736211905686,3.48044,3666.2,3666.0,1.1744]
[1736211905888,3.2078,3666.2,3666.0,1.44705]
[1736211906186,3.2078,3666.2,3666.1,40.8]
[1736211906778,5.23934627,3666.8,3666.1,40.8]
[1736211906779,4.68054627,3666.8,3666.1,40.8]
[1736211906987,3.2078,3666.6,3666.5,0.27261]
[1736211907181,3.2078,3666.6,3666.4,0.27262]
[1736211907490,2.11594136,3666.5,3666.3,0.27262]
[1736211907680,2.11594136,3666.5,3666.1,40.8]
[1736211907884,0.27263,3666.2,3666.1,40.8]
[1736211909789,2.43615593,3666.2,3666.1,40.8]
[1736211909989,0.27263,3666.2,3666.1,40.8]
[1736211910595,3.2078,3666.3,3666.1,40.8]
[1736211910799,3.48043,3666.3,3666.1,40.8]
[1736211910989,3.2078,3666.3,3666.1,40.8]
[1736211911587,3.2078,3666.3,3666.1,41.07264]
[1736211911788,3.2078,3666.3,3666.0,0.27264]
[1736211912289,3.2078,3666.3,3666.2,40.8]
[1736211912989,3.48043,3666.3,3666.2,40.8]
[1736211913189,0.27262,3666.4,3666.2,40.8]
[1736211913795,2.16352593,3666.5,3666.2,40.8]
[1736211913796,2.43613593,3666.5,3666.2,41.07263]
[1736211913996,2.43613593,3666.5,3666.2,40.8]
[1736211914295,0.27263,3666.3,3666.2,40.8]
[1736211914494,3.48042,3666.4,3666.2,40.8]
[1736211915391,0.27262,3666.3,3666.2,40.8]
[1736211915988,6.9325981,3666.3,3665.3,0.5929]
[1736211916198,0.27268,3665.6,3665.3,0.5929]
[1736211916595,0.27269,3665.5,3665.3,0.5929]
[1736211917085,3.48046,3665.8,3665.4,41.07268]
[1736211917295,3.2078,3665.8,3665.7,0.27266]
[1736211917692,3.2078,3665.8,3665.4,40.8]
[1736211917693,12.36889395,3665.8,3665.4,40.8]
[1736211917889,12.36889395,3665.8,3665.5,0.27267]
[1736211918086,12.36889395,3665.8,3665.4,41.07268]
[1736211918290,10.20536802,3665.8,3665.4,41.07268]
[1736211919192,6.99756802,3665.8,3665.4,41.07268]
[1736211920287,6.99756802,3665.8,3665.5,0.27267]
[1736211920497,6.99756802,3665.8,3665.4,41.07268]
[1736211921795,0.27266,3665.7,3665.4,40.8]
[1736211921995,0.27266,3665.7,3665.4,41.07268]
[1736211922298,0.27267,3665.6,3665.4,40.8]
[1736211922893,6.99755802,3665.8,3665.4,41.07268]
[1736211923394,0.27266,3665.7,3665.4,41.07268]
[1736211924493,10.20535802,3665.8,3665.4,40.8]
[1736211924698,10.20535802,3665.8,3665.5,0.27267]
[1736211925898,10.20535802,3665.8,3665.4,41.07267]
[1736211926093,10.20535802,3665.8,3665.5,0.27267]
[1736211926489,3.2078,3665.8,3665.4,40.8]
[1736211926695,3.2078,3665.8,3665.7,0.27266]
[1736211926999,3.2078,3666.2,3665.6,2.16352593]
[1736211927195,3.2078,3666.2,3665.7,0.5521]
[1736211927399,3.2078,3666.2,3666.1,0.27263]
[1736211928104,3.2078,3666.2,3666.1,41.07263]
[1736211928803,6.43043798,3667.0,3666.1,40.8]
[1736211928804,3.2078,3666.8,3666.1,40.8]
[1736211929001,3.2078,3666.8,3666.2,0.5685]
[1736211929201,3.2078,3666.8,3666.5,2.16352593]
[1736211929397,3.2078,3667.5,3666.6,0.5593]
[1736211929592,3.2078,3667.5,3666.7,0.5689]
[1736211929799,0.27257,3666.9,3666.7,0.5689]
[1736211930095,0.27261,3666.4,3666.0,3.2078]
[1736211930303,0.2726,3666.5,3666.1,41.29]
[1736211930505,3.2078,3666.7,3666.1,41.29]
[1736211930706,0.2726,3666.6,3666.1,41.56262]
[1736211931003,3.2078,3666.7,3666.1,41.56262]
[1736211931204,0.27261,3666.4,3666.1,41.29]
[1736211931604,3.2078,3666.7,3666.1,41.29]
[1736211931605,0.27261,3666.3,3666.1,41.29]
[1736211931799,0.27261,3666.4,3666.1,41.29]
[1736211932706,3.2078,3666.7,3666.1,41.29]
[1736211932905,0.2726,3666.5,3666.1,41.56263]
[1736211934109,0.27259,3666.6,3666.2,0.27262]
[1736211934410,0.27259,3666.6,3666.2,0.48]
[1736211935102,3.2078,3666.7,3666.4,0.2726]
[1736211935507,3.2078,3666.7,3666.5,0.8332]
[1736211935808,3.2078,3666.7,3666.6,0.5517]
[1736211936006,2.72112593,3667.5,3666.6,0.5517]
[1736211936007,3.2078,3667.3,3666.6,0.5517]
[1736211936206,3.2078,3667.3,3666.9,0.27256]
[1736211936707,3.48034,3667.3,3667.0,40.8]
[1736211937914,3.2078,3667.3,3667.0,40.8]
[1736211938314,3.48035,3667.3,3667.0,40.8]
[1736211938509,3.2078,3667.3,3667.0,40.8]
[1736211938706,3.2078,3667.3,3667.1,0.27255]
[1736211939417,3.2078,3667.3,3667.2,0.27255]
[1736211941610,3.48031,3667.8,3667.1,3.30972593]
[1736211941812,3.48031,3667.8,3667.4,0.27253]
[1736211942121,0.27251,3667.7,3667.4,0.27253]
[1736211942419,3.4803,3667.8,3667.5,0.27252]
[1736211942711,3.4803,3667.8,3667.1,1.1462]
[1736211942915,3.2078,3667.8,3667.7,0.27251]
[1736211943910,3.2078,3667.8,3667.7,41.07251]
[1736211944814,0.27251,3667.7,3667.3,0.27253]
[1736211945013,3.2078,3667.8,3667.3,0.76254]
[1736211945318,0.85782,3667.6,3667.3,41.29]
[1736211945518,0.5853,3667.6,3667.3,40.8]
[1736211945816,0.27255,3667.2,3666.9,0.27256]
[1736211946217,0.27255,3667.2,3667.0,40.8]
[1736211947415,3.2078,3667.4,3667.0,40.8]
[1736211947612,0.27255,3667.1,3667.0,40.8]
[1736211948014,0.27254,3667.3,3667.0,40.8]
[1736211948215,3.2078,3667.4,3667.0,40.8]
[1736211948416,0.27255,3667.2,3667.0,40.8]
[1736211948813,0.27254,3667.3,3667.0,40.8]
[1736211949013,0.27254,3667.3,3667.0,41.07255]
[1736211949223,0.27254,3667.3,3667.0,40.8]
[1736211950121,0.27255,3667.2,3667.0,40.8]
[1736211950316,0.27254,3667.3,3667.0,41.07256]
[1736211951313,0.27255,3667.2,3667.0,41.07256]
[1736211951716,3.48034,3667.4,3667.0,40.8]
[1736211951912,3.48034,3667.4,3667.1,0.27255]
[1736211952117,0.27254,3667.3,3667.0,41.07256]
[1736211953921,0.27254,3667.3,3667.0,40.8]
[1736211954122,3.48033,3667.4,3667.1,0.27255]
[1736211954620,0.27254,3667.3,3667.0,41.07255]
[1736211955021,0.27254,3667.3,3667.0,40.8]
[1736211955219,0.27254,3667.3,3667.1,0.27255]
[1736211955929,3.2078,3667.4,3667.0,40.8]
[1736211956119,3.48033,3667.4,3667.1,0.27255]
[1736211956525,0.27254,3667.3,3667.1,0.27255]
[1736211957027,3.2078,3667.4,3667.0,40.8]
[1736211957329,3.2078,3667.4,3667.0,0.5974]
[1736211957529,3.48034,3667.4,3667.1,0.27255]
[1736211957731,3.48034,3667.4,3667.2,40.8]
[1736211958224,3.2078,3667.4,3667.2,40.8]
[1736211958423,0.27254,3667.3,3667.2,40.8]
[1736211959030,3.2078,3667.4,3667.2,40.8]
[1736211959529,0.27254,3667.3,3667.2,40.8]
[1736211959732,3.2078,3667.4,3667.2,40.8]
[1736211960032,3.48033,3667.4,3667.2,41.07254]
[1736211960633,0.27254,3667.3,3667.2,40.8]
[1736211961228,3.2078,3667.4,3667.3,0.27254]
[1736211961428,3.2078,3667.4,3667.2,40.8]
[1736211961631,3.48034,3667.4,3667.2,40.8]
[1736211962736,0.27254,3667.3,3667.2,40.8]
[1736211962936,0.85164,3667.3,3667.2,40.8]
[1736211963834,3.2078,3667.4,3667.2,41.07254]
[1736211964036,3.48033,3667.4,3667.2,41.07254]
[1736211964336,3.2078,3667.4,3667.2,41.07254]
[1736211964533,3.48033,3667.4,3667.2,41.07254]
[1736211964736,3.2078,3667.4,3667.3,0.27254]
[1736211965637,0.27254,3667.3,3667.2,40.8]
[1736211968335,2.43606593,3667.3,3667.2,40.8]
[1736211968936,0.27254,3667.3,3667.2,40.8]
[1736211969341,2.38848136,3667.3,3667.2,40.8]
[1736211973147,0.27254,3667.3,3667.2,40.8]
[1736211974345,3.85544466,3667.3,3667.2,40.8]
[1736211975834,0.68153261,3667.3,3667.2,40.8]
[1736211978542,0.40899261,3667.3,3667.2,40.8]
[1736211978843,4.2714727,3667.4,3667.2,40.8]
[1736211979041,4.2714727,3667.4,3667.3,0.27254]
[1736211979947,2.3624727,3667.4,3667.3,0.27254]
[1736211980446,3.2078,3667.9,3667.7,0.27251]
[1736211980447,2.12212354,3667.8,3667.7,0.27251]
[1736211981648,2.12212354,3667.8,3667.7,2.43603593]
[1736211982044,3.18318532,3668.0,3667.7,10.37132593]
[1736211982249,3.18318532,3668.0,3667.9,0.27249]
[1736211982748,3.18318532,3668.0,3667.9,41.07249]
[1736211983450,2.65650886,3668.0,3667.9,46.07249]
[1736211983642,9.62270847,3668.8,3668.4,0.27246]
[1736211983643,2.65650886,3668.5,3668.4,0.27246]
[1736211984843,4.3704,3669.3,3668.4,0.27246]
[1736211984844,4.3704,3669.3,3668.4,0.6154]
[1736211985039,0.2724,3669.2,3668.8,0.27242]
[1736211985643,4.64279,3669.3,3668.8,0.27242]
[1736211985839,4.64279,3669.3,3668.4,0.6154]
[1736211986044,4.3704,3669.3,3669.0,0.27241]
[1736211986245,4.3704,3669.3,3669.1,0.2724]
[1736211986447,4.3704,3669.3,3668.6,2.16352593]
[1736211986646,1.1626,3669.3,3669.2,0.2724]
[1736211986946,3.48016,3669.7,3669.3,0.27239]
[1736211987153,1.1927,3669.6,3669.5,0.27237]
[1736211987455,1.1927,3669.6,3669.5,2.43589593]
[1736211987647,1.1927,3669.6,3669.5,0.27237]
[1736211988445,3.48013,3670.1,3669.5,10.37132593]
[1736211988446,3.2078,3670.1,3669.5,10.37132593]
[1736211988652,5.33934088,3670.7,3670.6,0.27229]
[1736211988845,5.33934088,3670.7,3670.6,5.64361593]
[1736211989049,6.41490847,3671.1,3670.6,10.37132593]
[1736211989248,5.84446847,3671.1,3671.0,46.44359593]
[1736211989648,5.31400433,3671.1,3671.0,46.44359593]
[1736211990457,3.8309,3672.2,3672.0,0.27219]
[1736211990955,3.8309,3672.2,3671.9,0.2722]
[1736211991153,3.8309,3672.2,3671.7,3.2078]
[1736211991368,3.2078,3672.2,3672.0,0.27219]
[1736211991556,3.2078,3672.2,3671.7,3.2078]
[1736211991751,3.2078,3672.2,3672.0,0.27219]
[1736211992150,3.2078,3672.2,3671.7,0.27221]
[1736211992356,2.16352593,3672.0,3671.5,0.27222]
[1736211992553,6.87927835,3672.1,3671.8,0.2722]
[1736211992753,3.2078,3672.2,3671.8,0.2722]
[1736211993052,6.84269727,3672.1,3671.9,0.2722]
[1736211993258,6.84269727,3672.1,3671.6,2.16352593]
[1736211993457,3.2078,3672.2,3671.6,2.16352593]
[1736211993458,0.6087,3672.4,3672.3,0.27217]
[1736211994759,3.2078,3672.8,3672.0,3.2078]
[1736211995059,3.2078,3672.8,3672.4,0.27216]
[1736211996365,0.63849,3672.5,3672.4,0.27216]
[1736211996665,0.6205,3673.0,3672.9,0.27212]
[1736211997061,7.41481206,3673.0,3672.9,0.27212]
[1736211997358,7.496,3674.1,3672.9,3.2078]
[1736211997359,2.16352593,3673.8,3672.9,3.2078]
[1736211997556,2.16352593,3673.8,3673.7,0.27207]
[1736211997857,4.2938,3673.9,3673.8,0.27206]
[1736211998062,3.2078,3673.9,3673.8,0.27206]
[1736211998562,3.2078,3673.9,3673.8,41.07206]
[1736211998954,2.16352593,3674.4,3674.2,0.27203]
[1736211998955,3.2078,3674.3,3674.2,0.27203]
[1736211999359,10.10443142,3674.3,3674.2,0.27203]
[1736211999758,10.69833142,3674.3,3674.2,0.27203]
[1736212000357,10.69833142,3674.3,3673.4,3.2078]